[Event "44th Chess Olympiad Open 2022"]
[Site "Chennai"]
[Date "2022.07.29"]
[Round "1.24"]
[White "Pantsulaia, Levan"]
[Black "Nyambalo, Joseph Xavier"]
[Result "1-0"]
[WhiteElo "2581"]
[BlackElo "1981"]
[Annotator "TA"]
[PlyCount "69"]
[EventDate "2022.??.??"]
[TimeControl "60"]

{[%evp 9,69,-14,-8,-6,-12,0,12,7,6,-18,3,-16,19,34,34,27,31,24,26,20,33,0,30,
33,43,37,52,52,68,66,112,98,114,108,106,111,125,97,135,106,140,100,91,98,104,
88,152,169,158,145,212,213,198,203,410,410,470,429,352,242,29994,29995]} 1. Nf3
{[%emt 0:00:04]} d5 {[%emt 0:00:05]} 2. g3 {[%emt 0:00:07]} g6 {[%emt 0:01:00]}
3. c4 {[%emt 0:01:14]} dxc4 {[%emt 0:00:00]} 4. Na3 {[%emt 0:00:56]} Bg7 {
[%emt 0:00:00]} 5. Nxc4 {[%emt 0:00:06]} Nc6 {[%emt 0:00:00]} 6. d3 {[%emt 0:
00:00] A09: Réti Opening: 1 Nf3 d5 2 c4.} e5 {[%emt 0:00:48][%cal Ye5e4]} 7.
Bd2 {[%emt 0:00:07]} Be6 {[%emt 0:04:32]} 8. Rc1 {[%emt 0:04:12] The position
is equal.} Nge7 {[%emt 0:03:13]} 9. Bg2 {[%emt 0:02:57]} O-O {[%emt 0:00:00]}
10. O-O {[%emt 0:00:16]} h6 {[%emt 0:00:00]} 11. b4 {[%emt 0:00:16]} a6 {
[%emt 0:02:30]} 12. a4 {[%emt 0:00:07][%cal Ya2a4,Ya4b5,Yb5b6] [#]} Rb8 $146 {
[%emt 0:02:20]} ({Predecessor:} 12... Bd5 13. b5 axb5 14. axb5 Nd4 15. Nfxe5
Bxg2 16. Kxg2 Qd5+ 17. e4 Qxb5 18. Rb1 Qa6 {1-0 (30) Praggnanandhaa, R (2608)
-Ivanisevic,I (2585) Chess.com INT 2021}) 13. b5 {[%emt 0:11:33]} axb5 {
[%emt 0:01:39]} 14. axb5 {[%emt 0:00:06]} Nd4 {[%emt 0:06:48]} 15. b6 {[%emt 0:
00:19]} Nxf3+ {[%emt 0:01:45]} 16. Bxf3 {[%emt 0:01:21]} c6 {[%emt 0:00:00]}
17. Bb4 {[%emt 0:03:38][%cal Yd2b4,Yb4d6,Yd6c7,Yc7e5]} Ra8 {[%emt 0:08:02]} 18.
Bd6 {[%emt 0:10:30]} Qd7 {[%emt 0:11:06]} 19. Bc7 {[%emt 0:00:00]} Nc8 {
[%emt 0:04:50] Against Nd6} (19... Nd5 $14) 20. Nxe5 $16 {[%emt 0:00:00] White
is more active.} Bxe5 {[%emt 0:06:06]} 21. Bxe5 {[%emt 0:00:00]} Nxb6 {[%emt 0:
01:24]} 22. Rb1 {[%emt 0:00:00]} Nd5 {[%emt 0:05:19]} 23. Qd2 {[%emt 0:01:09]}
Kh7 {[%emt 0:00:00]} 24. Rfc1 {[%emt 0:00:00][%cal Yf1c1,Yc1c4,Yc4a4]} Ra4 {
[%emt 0:04:30]} 25. Ra1 {[%emt 0:05:54]} Rfa8 {[%emt 0:00:00]} 26. Rxa4 {
[%emt 0:00:53]} Rxa4 {[%emt 0:00:00]} 27. Ba1 $40 {[%emt 0:00:00] Black must
now prevent Qb2. White wants a kill. This bishop pair is nice.} Ra8 {[%emt 0:
07:32]} (27... Qe7 $142) 28. Qb2 {[%emt 0:01:51][%csl Ga1][%cal Rb2g7]} Rg8 {
[%emt 0:00:00] Prevents Qg7+.} 29. Rc4 {[%emt 0:00:00]} Ne7 {[%emt 0:00:00] [#]
} (29... Qe7 $16 30. Ra4 Bc8) 30. Ra4 $1 $18 {[%emt 0:07:00]} Nc8 {[%emt 0:00:
56]} 31. h4 {[%emt 0:00:00]} b6 $2 {[%emt 0:00:00]} (31... h5 32. Ra8 Qc7) 32.
h5 {[%emt 0:00:00]} ({Not} 32. Ra8 Qb7 $18) 32... c5 {[%emt 0:01:25]} 33. hxg6+
{[%emt 0:00:40]} fxg6 {[%emt 0:00:02]} 34. Rh4 {[%emt 0:00:09]} g5 $2 {[%emt 0:
03:32] [#]} (34... Nd6 $18 35. Qxb6 Nf5) 35. Qf6 $1 {[%emt 0:01:31] Weighted
Error Value: White=0.11 (very precise) / Black=0.49} 1-0

[Event "44th Chess Olympiad Open 2022"]
[Site "Chennai"]
[Date "2022.07.29"]
[Round "1.24"]
[White "Matola Ernest"]
[Black "Gelashvili, Tamaz"]
[Result "0-1"]
[WhiteElo "1964"]
[BlackElo "2549"]
[Annotator "TA"]
[PlyCount "52"]
[EventDate "2022.??.??"]
[TimeControl "60"]

{[%evp 16,52,0,-10,9,-31,-42,-36,-45,-48,-37,-32,-21,-13,-20,-20,-25,-33,0,
-168,-166,-241,-211,-395,-400,-494,-491,-923,-897,-1249,-1232,-1203,-1125,
-1117,-941,-919,-919,-793,160]} 1. Nf3 {[%emt 0:00:15]} c5 {[%emt 0:00:16]} 2.
g3 {[%emt 0:00:19]} Nc6 {[%emt 0:00:46]} 3. Bg2 {[%emt 0:00:33]} g6 {[%emt 0:
00:00]} 4. O-O {[%emt 0:00:14]} Bg7 {[%emt 0:00:05]} 5. d3 {[%emt 0:00:31]} d6
{[%emt 0:04:26]} 6. e4 {[%emt 0:01:24]} Nf6 {[%emt 0:01:46]} 7. Nbd2 {[%emt 0:
00:00]} O-O {[%emt 0:00:28]} 8. Re1 {[%emt 0:01:13]} Rb8 {[%emt 0:00:30]} 9. c3
{[%emt 0:02:55]} Nd7 {[%emt 0:00:20] A05: Réti Opening: 1 Nf3 Nf6.} 10. Qc2 {
[%emt 0:01:24]} b5 {[%emt 0:00:56]} 11. Nf1 {[%emt 0:01:49]} b4 {[%emt 0:00:31]
Black is slightly better.} 12. Bf4 {[%emt 0:03:05]} bxc3 {[%emt 0:03:59]} 13.
bxc3 {[%emt 0:00:28]} Qa5 {[%emt 0:00:15]} 14. Bd2 {[%emt 0:01:33] [#]} Qa3
$146 {[%emt 0:07:32]} ({Predecessor:} 14... Ba6 15. c4 Nb4 16. Qd1 Qc7 17. Bxb4
Bxa1 18. Bxc5 Nxc5 19. Qxa1 {0-1 (19) Hausmann,H (1624)-McCabe,P (1840) IECG
email 2007}) 15. Reb1 {[%emt 0:01:51] Prevents Rb2.} Ba6 {[%emt 0:00:41]} 16.
Ne1 {[%emt 0:02:55]} Nde5 {[%emt 0:34:13]} 17. f4 $2 {[%emt 0:00:43] [#]} (17.
Ne3 $11) 17... Nxd3 $1 $19 {[%emt 0:01:03]} 18. Rxb8 {[%emt 0:00:50]} (18. Nxd3
{[#]} Nd4 $3 19. cxd4 Bxd3) (18. e5 {was necessary.} Nxe1 19. Rxe1) 18... Rxb8
{[%emt 0:00:20][%cal Yf8b8,Yb8b1,Yb1f1]} 19. Nxd3 {[%emt 0:00:25] [#]} (19. e5
{was the only defense.} Rb2 20. Qd1) 19... Nd4 $3 {[%emt 0:00:08] Pin,
Deflection} 20. Qd1 {[%emt 0:02:06]} (20. Rb1 Nxc2) 20... Bxd3 {[%emt 0:00:25]
Black is clearly winning.} 21. cxd4 {[%emt 0:00:00]} (21. Kh1 $142 Ne2 22. Ne3)
21... Bxd4+ {[%emt 0:00:07]} 22. Kh1 {[%emt 0:00:27]} Bxa1 {[%emt 0:00:33]} 23.
Qxa1 {[%emt 0:05:51]} Rb1 {[%emt 0:00:00]} 24. Qc3 {[%emt 0:01:26]} Qxc3 {
[%emt 0:00:06]} 25. Bxc3 {[%emt 0:00:08]} Bxf1 {[%emt 0:00:10]} 26. Bxf1 {
[%emt 0:00:20]} Rxf1+ {[%emt 0:00:05] Weighted Error Value: White=1.03/Black=0.
16 (very precise) . Loss on time!?} 0-1

[Event "44th Chess Olympiad Open 2022"]
[Site "Chennai"]
[Date "2022.07.29"]
[Round "1.24"]
[White "Chiwambo Stansford"]
[Black "Paichadze, Luka"]
[Result "0-1"]
[WhiteElo "1913"]
[BlackElo "2561"]
[Annotator "TA"]
[PlyCount "106"]
[EventDate "2022.??.??"]
[TimeControl "60"]

{[%evp 9,106,7,24,12,0,-9,25,33,30,-15,-4,0,-8,-5,0,0,-2,-11,-17,-20,-1,-26,23,
-38,-29,-36,-27,-37,-13,-22,-7,-33,-31,-46,-3,-10,0,-38,-18,-27,-26,-29,-22,
-27,-26,-41,0,-21,-9,-20,-17,-101,-111,-119,-117,-114,-104,-105,-57,-121,-104,
-149,-155,-161,-107,-201,-206,-198,-153,-197,-212,-229,-233,-224,-220,-210,
-199,-200,-172,-213,-194,-300,-271,-651,-636,-625,-621,-601,-596,-587,-531,
-537,-533,-522,-510,-578,-557,-627,-603]} 1. c4 {[%emt 0:00:05]} e5 {[%emt 0:
00:00][%cal Ye7e5,Ye5e4]} 2. Nc3 {[%emt 0:00:24]} Nf6 {[%emt 0:00:06]} 3. g3 {
[%emt 0:00:22]} c6 {[%emt 0:00:06]} 4. Nf3 {[%emt 0:01:08]} e4 {[%emt 0:00:00]}
5. Nd4 {[%emt 0:00:41]} Qb6 {[%emt 0:00:12]} 6. Nc2 {[%emt 0:01:24] A23:
English Opening: 1...e5 2 Nc3 Nf6 3 g3 c6.} d5 {[%emt 0:03:28]} 7. Bg2 {
[%emt 0:07:35]} Bc5 $5 {[%emt 0:16:44] Leaves trodden paths.} 8. O-O {[%emt 0:
06:51] [#] White has an edge.} dxc4 $146 {[%emt 0:00:23]} (8... Bxf2+ $2 9.
Rxf2 Ng4 10. Qf1 $18) ({Predecessor:} 8... O-O 9. Na4 Qa5 10. Nxc5 Qxc5 11. b3
Re8 12. cxd5 Qxd5 13. Bb2 Nbd7 14. d3 Qh5 15. dxe4 Nxe4 {½-½ (49) Plater,
K-Balcerowski,W Glucholazy 1963}) 9. Nxe4 {[%emt 0:03:35]} (9. Na4 $5 {[%cal
Ra4b6]} Qb5 10. Nxc5 Qxc5 11. b3 $14) 9... Nxe4 {[%emt 0:00:08]} 10. Bxe4 {
[%emt 0:00:05]} Bh3 {[%emt 0:01:38]} 11. Bg2 {[%emt 0:00:49]} Bxg2 {[%emt 0:00:
00]} 12. Kxg2 {[%emt 0:00:01]} O-O $1 {[%emt 0:01:41]} 13. d4 {[%emt 0:00:00]}
cxd3 $1 {[%emt 0:01:50]} 14. Qxd3 {[%emt 0:09:34]} Rd8 {[%emt 0:00:19]} 15. Qc3
{[%emt 0:02:40]} Nd7 {[%emt 0:00:52]} (15... Be7 {is superior.}) 16. b4 {
[%emt 0:04:12]} ({White should try} 16. Bg5 $11) 16... Be7 {[%emt 0:02:59]
Hoping for ...Bf6.} 17. Be3 {[%emt 0:02:29]} Qb5 {[%emt 0:01:43]} 18. Bd4 {
[%emt 0:05:33]} Nf6 {[%emt 0:03:50][%cal Yd7f6,Yf6d5,Yd5c7,Yc7e6]} (18... Qxe2
$2 19. Rfe1 Bxb4 20. Nxb4 $18 (20. Rxe2 Bxc3 21. Bxc3 Nb6 $18)) 19. a4 {
[%emt 0:04:38]} Qh5 {[%emt 0:05:23] Threatening ...a5.} (19... Qxe2 20. Rfe1
Qg4 21. Rxe7 $11) 20. f3 {[%emt 0:02:19]} Nd5 {[%emt 0:01:46]} 21. Qb2 {
[%emt 0:02:08]} Qg6 {[%emt 0:03:45]} (21... Rd6 {looks sharper.} 22. Rad1 Rh6
23. Rh1 Re6) 22. Kh1 {[%emt 0:01:44]} (22. Rad1 {feels hotter.} Nf4+ 23. Kf2
Ne6 24. Bc3) 22... Nc7 {[%emt 0:01:32]} 23. e4 {[%emt 0:02:01]} Ne6 {[%emt 0:
00:00]} 24. Bc3 {[%emt 0:01:07]} Rd3 {[%emt 0:08:07]} 25. Rad1 {[%emt 0:01:05]}
Rad8 {[%emt 0:00:49]} 26. Rxd3 {[%emt 0:00:59]} Rxd3 {[%emt 0:00:05]} 27. Ne1 {
[%emt 0:00:58]} Rd1 {[%emt 0:05:41]} 28. Qe2 {[%emt 0:01:12]} (28. Qc2 $5 {
[%cal Rc2d1]} Rd8 29. Ng2 $11) 28... Rd8 {[%emt 0:00:31][%cal Yd1d8,Yd8d3,
Yd3a3]} 29. Nc2 {[%emt 0:03:47]} Bf6 {[%emt 0:02:16]} 30. e5 {[%emt 0:00:00]} (
30. Be1 $11) 30... Qd3 $17 {[%emt 0:02:39]} 31. Qxd3 {[%emt 0:09:51]} Rxd3 {
[%emt 0:00:07]} 32. Ba1 {[%emt 0:00:33]} Be7 {[%emt 0:00:04]} 33. f4 {[%emt 0:
01:22]} g6 {[%emt 0:00:06]} (33... Nc7 $17 34. Bd4 a6) 34. Rb1 {[%emt 0:00:25]}
(34. Kg2 $1 $15) 34... h5 {[%emt 0:01:17]} 35. Ne1 {[%emt 0:00:00]} Ra3 {
[%emt 0:00:54] Black is more active.} 36. a5 {[%emt 0:00:21] [#]} h4 {[%emt 0:
01:45]} ({But not} 36... Bxb4 37. Nc2 Rxa5 38. Rxb4 $11) (36... c5 $1 $19 {
[%cal Rc5b4]} 37. bxc5 Rxa5) 37. Kg2 {[%emt 0:00:18] [#]} (37. Nc2 $17 {
was called for.} Ra2 38. Rb2) 37... h3+ $1 $19 {[%emt 0:02:17]} 38. Kxh3 {
[%emt 0:01:22]} Nxf4+ $1 {[%emt 0:00:00]} 39. Kg4 {[%emt 0:00:13]} Nd5 {
[%emt 0:06:39]} 40. Bd4 {[%emt 0:06:18]} Nxb4 {[%emt 0:00:00]} ({Inferior is} 
40... Bxb4 41. Nc2 Ra4 42. Nxb4 Nxb4 43. Kf3 $15) 41. Bxa7 {[%emt 0:31:54]}
Rxa5 {[%emt 0:25:59]} 42. Bb8 {[%emt 0:00:18]} Ra4 {[%emt 0:03:38]} 43. Kf3 {
[%emt 0:01:28]} Kf8 {[%emt 0:03:04]} 44. h4 {[%emt 0:00:56]} b5 {[%emt 0:00:11]
[%cal Yb7b5,Yb5b4]} 45. g4 {[%emt 0:05:12]} (45. Bd6 $142) 45... Nd5 {[%emt 0:
06:24]} 46. Ng2 $2 {[%emt 0:02:35]} (46. Bd6) 46... Ra3+ {[%emt 0:00:00] Black
is clearly winning.} 47. Kf2 {[%emt 0:00:06]} Bc5+ {[%emt 0:00:22]} 48. Kf1 {
[%emt 0:00:37]} Rf3+ {[%emt 0:01:44]} 49. Ke1 {[%emt 0:00:24]} b4 {[%emt 0:02:
01] Threatens to win with ...Rh3.} 50. Bd6+ {[%emt 0:00:00]} Bxd6 {[%emt 0:00:
00]} 51. exd6 {[%emt 0:00:00]} Ke8 {[%emt 0:00:00]} 52. Ke2 {[%emt 0:00:00]}
Rg3 {[%emt 0:00:00][%csl Yg2,Yg4]} 53. Re1 {[%emt 0:00:00] Black must now
prevent Kf2+.} Kd7 {[%emt 0:00:00] Weighted Error Value: White=0.35/Black=0.10
(very precise)} ({Weaker is} 53... Rxg2+ 54. Kf3+ Kd7 55. Kxg2 $11) 0-1

[Event "44th Chess Olympiad Open 2022"]
[Site "Chennai"]
[Date "2022.07.29"]
[Round "1.25"]
[White "Banikas, Hristos"]
[Black "Germinal, Kemly"]
[Result "1-0"]
[WhiteElo "2598"]
[BlackElo "1997"]
[Annotator "TA"]
[PlyCount "65"]
[EventDate "2022.??.??"]
[TimeControl "60"]

{[%evp 21,65,31,26,18,35,32,45,15,20,-45,-18,-45,-36,-51,-10,-15,1,0,131,134,
122,118,284,289,276,278,258,260,225,215,304,342,316,336,388,425,458,454,402,
420,586,412,787,775,787,688]} 1. d4 {[%emt 0:00:04]} Nf6 {[%emt 0:00:40]} 2. c4
{[%emt 0:00:14]} e6 {[%emt 0:00:14]} 3. Nf3 {[%emt 0:00:06]} c5 {[%emt 0:00:29]
} 4. d5 {[%emt 0:00:07]} exd5 {[%emt 0:00:30]} 5. cxd5 {[%emt 0:00:06]} d6 {
[%emt 0:00:17]} 6. e4 {[%emt 0:00:36]} g6 {[%emt 0:00:21]} 7. Nfd2 {[%emt 0:00:
00]} Bg7 {[%emt 0:01:29]} 8. Be2 {[%emt 0:00:04]} O-O {[%emt 0:00:30]} 9. O-O {
[%emt 0:00:11]} Re8 {[%emt 0:01:52]} 10. Nc3 {[%emt 0:00:07]} Na6 {[%emt 0:00:
00]} 11. Re1 {[%emt 0:04:48]} Nc7 {[%emt 0:01:25]} 12. h3 {[%emt 0:15:54] A78:
Modern Benoni: Classical: 9...Re8 10 Nd2 Na6.} b6 {[%emt 0:04:19]} 13. a4 {
[%emt 0:01:34]} Rb8 {[%emt 0:11:16]} 14. Qc2 {[%emt 0:10:22] White is slightly
better.} (14. Bb5 $5 {[%cal Rb5e8]}) 14... a6 {[%emt 0:00:00][%cal Ya7a6,Ya6b5,
Yb5b4]} 15. Rb1 {[%emt 0:00:03]} (15. Nf3 $11) 15... b5 $1 $15 {[%emt 0:08:53]}
16. axb5 {[%emt 0:00:03]} axb5 {[%emt 0:00:14] aiming for ... b4.} 17. b4 {
[%emt 0:00:04][%cal Yb2b4,Yb4c5,Yc5c6] [#]} Bd7 $146 {[%emt 0:13:01]} (17...
Ncxd5 {looks sharper.} 18. Nxd5 Nxd5 19. exd5 Bf5) ({Predecessor:} 17... Ncxd5
18. Nxd5 Nxd5 19. exd5 Bf5 20. Qd1 Bxb1 21. Nxb1 cxb4 22. Be3 Qa5 23. Nd2 Qa4 {
1-0 (53) Koch,T (2489)-Berelowitsch,A (2522) Germany 2018}) 18. bxc5 {[%emt 0:
07:01] [#] c6 is the strong threat.} b4 {[%emt 0:00:00]} 19. Nd1 $36 {[%emt 0:
04:28] Threatens to win with c6. White has the initiative.} Ncxd5 {[%emt 0:03:
43]} 20. c6 $16 {[%emt 0:09:11]} (20. exd5 Bf5 21. Qb3 Bxb1 $14) (20. cxd6 $6
Nc3 21. Nxc3 bxc3 22. Qxc3 Nxe4 $11) 20... Qc7 {[%emt 0:05:35]} 21. exd5 {
[%emt 0:04:17]} Bf5 $2 {[%emt 0:00:22] [#] This costs Black the game.} (21...
Nxd5 $16 22. Nf3 Qxc6 23. Qxc6 Bxc6) 22. Qb3 $18 {[%emt 0:00:06] And now Rb2
would win.} Bxb1 {[%emt 0:03:41]} 23. Nxb1 {[%emt 0:00:07]} ({Not} 23. Qxb1
Nxd5 24. Ne3 (24. Qc2 Nc3 $17) 24... Nxe3 25. fxe3 Qxc6 $15) 23... Ne4 {
[%emt 0:05:20]} 24. Be3 {[%emt 0:01:10]} Qa5 {[%emt 0:05:48]} 25. Nd2 {[%emt 0:
03:49]} Nc3 {[%emt 0:04:19]} (25... Nc5 {was worth a try.} 26. Qb1 b3) 26. Bf3
{[%emt 0:00:41]} Qa3 {[%emt 0:01:19]} 27. Qc4 {[%emt 0:00:09]} Nxd1 {[%emt 0:
10:13]} 28. Rxd1 {[%emt 0:00:48]} ({Much less strong is} 28. Bxd1 Qc3 29. Re2
Ra8 $18) 28... Rxe3 {[%emt 0:08:07]} 29. fxe3 {[%emt 0:00:05]} Qxe3+ {[%emt 0:
00:05]} 30. Kh1 {[%emt 0:00:09]} Be5 {[%emt 0:01:59]} 31. Qe4 {[%emt 0:00:18]}
Qf2 {[%emt 0:00:53]} (31... Qc5 $142 32. Qh4 Re8) 32. Nc4 {[%emt 0:00:44]} f5 {
[%emt 0:00:28]} 33. Qe2 {[%emt 0:00:00] Weighted Error Value: White=0.18 (very
precise) /Black=0.45} 1-0

[Event "44th Chess Olympiad Open 2022"]
[Site "Chennai"]
[Date "2022.07.29"]
[Round "1.25"]
[White "Theodorou, Nikolas"]
[Black "Guillaume, Jude Mirvens"]
[Result "1-0"]
[WhiteElo "2575"]
[BlackElo "2022"]
[Annotator "TA"]
[PlyCount "69"]
[EventDate "2022.??.??"]
[TimeControl "60"]

{[%evp 16,69,50,30,68,72,65,62,56,52,92,81,121,118,169,168,184,191,187,185,212,
201,453,437,528,528,520,525,520,506,481,413,417,387,375,377,376,375,371,366,
435,433,483,479,443,438,523,515,514,464,633,611,614,612,581,568]} 1. d4 {
[%emt 0:00:07]} d5 {[%emt 0:00:16]} 2. Nf3 {[%emt 0:00:38]} e6 {[%emt 0:01:03]}
3. c4 {[%emt 0:00:39]} Nf6 {[%emt 0:00:43]} 4. g3 {[%emt 0:00:54]} c5 {[%emt 0:
00:00]} 5. cxd5 {[%emt 0:03:49]} Nxd5 {[%emt 0:01:24]} 6. Bg2 {[%emt 0:02:00]}
Nc6 {[%emt 0:01:30]} 7. O-O {[%emt 0:00:44]} Be7 {[%emt 0:02:54]} 8. dxc5 {
[%emt 0:06:47]} Bxc5 {[%emt 0:01:30]} 9. a3 {[%emt 0:00:44]} a6 {[%emt 0:03:01]
E06: Closed Catalan: Early deviations.} 10. b4 {[%emt 0:04:48]} Be7 {[%emt 0:
00:00] [#]} 11. Bb2 $146 {[%emt 0:00:58]} ({Predecessor:} 11. e4 Nf6 12. e5 Nd5
13. Bb2 O-O 14. Qe2 Re8 15. Rd1 Bf8 16. Nbd2 b5 17. Ne4 {1-0 (33) Arbynova,A 
(1827)-Turetsky,M (1520) St Petersburg 2018}) 11... O-O {[%emt 0:00:25] White
is slightly better.} 12. Nc3 {[%emt 0:04:08]} Nf6 {[%emt 0:03:14]} 13. Rc1 {
[%emt 0:06:58]} Qxd1 {[%emt 0:11:11]} 14. Rfxd1 {[%emt 0:00:10]} Rb8 {[%emt 0:
00:00] [#]} (14... Bd7 $16) 15. Na4 $1 $18 {[%emt 0:02:00]} Rd8 {[%emt 0:05:58]
} 16. Rxd8+ {[%emt 0:03:11]} Bxd8 {[%emt 0:05:09]} 17. Ne5 {[%emt 0:09:52]
[%cal Yf3e5,Ye5c4,Yc4e3]} Ne7 {[%emt 0:07:24]} 18. Nc4 {[%emt 0:11:07] Be5 is
the strong threat.} b5 $2 {[%emt 0:08:01]} (18... Nd7 {was necessary.}) 19. Be5
{[%emt 0:00:30]} Rb7 {[%emt 0:08:20]} 20. Bxb7 {[%emt 0:01:01]} Bxb7 {[%emt 0:
00:02]} 21. Bxf6 {[%emt 0:00:41]} gxf6 {[%emt 0:00:46]} 22. Nc5 {[%emt 0:00:32]
} Bd5 {[%emt 0:05:59]} 23. Ne3 {[%emt 0:01:49]} Bc6 {[%emt 0:00:00]} 24. Nxa6 {
[%emt 0:00:29]} Bb6 {[%emt 0:01:03]} 25. Nc5 {[%emt 0:00:20]} Kg7 {[%emt 0:00:
45]} 26. f4 {[%emt 0:01:31]} Kg6 {[%emt 0:09:53]} 27. Kf2 {[%emt 0:00:11]} f5 {
[%emt 0:02:01]} 28. Nc2 {[%emt 0:01:14] White is clearly winning.} Nd5 {
[%emt 0:01:58]} 29. Nd4 {[%emt 0:00:42]} Be8 {[%emt 0:00:30]} 30. e3 {[%emt 0:
03:32]} Nf6 {[%emt 0:03:59]} 31. Ke2 {[%emt 0:00:13]} Nd5 {[%emt 0:00:14]} 32.
Nd3 {[%emt 0:00:32]} f6 {[%emt 0:03:27]} 33. Nc5 {[%emt 0:00:00]} e5 {[%emt 0:
00:54]} 34. fxe5 {[%emt 0:00:12]} fxe5 {[%emt 0:00:03] [#]} 35. Nxf5 $1 {
[%emt 0:00:21] Black got outplayed after the opening. Weighted Error Value:
White=0.06 (flawless) /Black=0.42} 1-0

[Event "44th Chess Olympiad Open 2022"]
[Site "Chennai"]
[Date "2022.07.29"]
[Round "1.25"]
[White "Jean Louis, Marckens"]
[Black "Mastrovasilis, Dimitrios"]
[Result "0-1"]
[WhiteElo "2050"]
[BlackElo "2599"]
[Annotator "TA"]
[PlyCount "66"]
[EventDate "2022.??.??"]
[TimeControl "60"]

{[%evp 12,66,14,-14,3,0,0,12,18,-7,-19,-20,-28,-94,-55,-83,-72,-78,-91,-91,-85,
-75,-76,-148,-147,-147,-144,-144,-145,-216,-224,-216,-213,-219,-217,-216,-216,
-291,-291,-293,-293,-292,-245,-318,-282,-306,-322,-331,-320,-356,-337,-369,
-358,-587,-580,-790,-781]} 1. e4 {[%emt 0:02:36]} c5 {[%emt 0:00:15]} 2. Nf3 {
[%emt 0:00:36]} e6 {[%emt 0:01:59]} 3. Nc3 {[%emt 0:01:41]} a6 {[%emt 0:01:16]}
4. Be2 {[%emt 0:02:52]} b5 {[%emt 0:02:38]} 5. d4 {[%emt 0:02:09]} cxd4 6. Nxd4
Bb7 {[%emt 0:03:31]} 7. Bf3 {[%emt 0:10:31]} Nc6 {[%emt 0:02:54] B43: Sicilian:
Kan Variation: 5 Nc3.} 8. Nxc6 {[%emt 0:03:21]} Bxc6 {[%emt 0:03:25] [#]} 9.
Qd4 $146 {[%emt 0:30:58]} ({Predecessor:} 9. O-O Qb8 10. a4 b4 11. Ne2 Bd6 12.
h3 Ne7 13. Nd4 Bb7 14. Bd2 O-O 15. Qe1 {½-½ (41) Riff,J (2474)-Fedorov,A 
(2620) Kemer 2007}) 9... Ne7 {[%emt 0:18:07] The position is equal.} 10. Bg5 {
[%emt 0:06:26][%cal Yc3d5]} f6 {[%emt 0:08:53]} 11. Bh5+ {[%emt 0:01:09]} Ng6 {
[%emt 0:04:20]} 12. Bh4 {[%emt 0:05:50]} (12. Be3 $11 {keeps the balance.})
12... Qe7 {[%emt 0:10:17]} 13. f4 {[%emt 0:07:42][%cal Yf4f5]} Qc5 {[%emt 0:00:
00] Inhibits f5.} 14. Qxc5 {[%emt 0:00:00]} Bxc5 {[%emt 0:04:28]} 15. Bf2 {
[%emt 0:02:04] [#]} Bxf2+ {[%emt 0:02:28]} 16. Kxf2 {[%emt 0:00:00]} b4 $36 {
[%emt 0:02:00] White is under strong pressure.} (16... Ke7 {seems wilder.} 17.
Ke3 f5 18. Bf3 Nh4) 17. Nd5 {[%emt 0:06:24]} exd5 $17 {[%emt 0:00:00]} 18. exd5
{[%emt 0:00:00]} Bxd5 {[%emt 0:00:07]} 19. f5 {[%emt 0:00:00]} Rc8 {[%emt 0:02:
51]} 20. Rhe1+ {[%emt 0:03:07] [#]} (20. Rac1 $17) 20... Kd8 $1 $19 {[%emt 0:
00:26]} 21. fxg6 {[%emt 0:08:41]} Rxc2+ {[%emt 0:09:23]} 22. Re2 {[%emt 0:01:
24]} Rxe2+ {[%emt 0:01:38]} 23. Bxe2 {[%emt 0:00:00]} hxg6 {[%emt 0:00:00]} 24.
Bxa6 {[%emt 0:00:00]} Rxh2 {[%emt 0:01:14] Endgame KRB-KRB} 25. Bf1 {[%emt 0:
00:00]} Rh1 {Threatens to win with ...Bc4.} 26. b3 {[%emt 0:06:54]} Bc6 {
[%emt 0:02:23] Strongly threatening ...Bb5.} 27. Re1 {[%emt 0:01:55]} Rh5 {
[%emt 0:01:26]} 28. Bd3 {[%emt 0:01:41]} Ra5 {[%emt 0:00:00]} 29. Bb1 {[%emt 0:
01:41]} f5 {[%emt 0:03:46]} 30. Re2 {[%emt 0:00:00]} Rd5 {[%emt 0:02:53]} 31.
Ke1 {[%emt 0:01:23]} Rd4 {[%emt 0:00:31] ...Rg4 is the strong threat.} 32. Bc2
$2 {[%emt 0:00:00]} (32. Kf2 {is a better defense.}) 32... Rg4 {[%emt 0:00:00]}
33. Kf1 {[%emt 0:00:00]} Bb5 {[%emt 0:00:00] White did not feel at home in the
position after the opening. Weighted Error Value: White=0.46/Black=0.07 
(flawless)} 0-1

[Event "44th Chess Olympiad Open 2022"]
[Site "Chennai"]
[Date "2022.07.29"]
[Round "1.25"]
[White "Etienne, Angelo"]
[Black "Mastrovasilis, Athanasios"]
[Result "0-1"]
[WhiteElo "2036"]
[BlackElo "2527"]
[Annotator "RC"]
[PlyCount "74"]
[EventDate "2022.??.??"]
[TimeControl "60"]

1. Nf3 {[%emt 0:04:37]} d5 {[%emt 0:04:30]} 2. c4 {[%emt 0:00:13]} e6 {[%emt 0:
00:00]} 3. g3 {[%emt 0:00:53]} dxc4 {[%emt 0:00:52]} 4. Bg2 {[%emt 0:01:33]} a6
{[%emt 0:01:55]} 5. O-O {[%emt 0:04:21]} Nf6 {[%emt 0:00:36]} 6. Qc2 {[%emt 0:
00:00]} b5 {[%emt 0:01:26]} 7. Ne5 {[%emt 0:01:21]} Nd5 {[%emt 0:02:10]} 8. d3
{[%emt 0:05:12]} cxd3 {[%emt 0:05:51]} 9. Nxd3 {[%emt 0:02:24]} Bb7 {[%emt 0:
00:00]} 10. Rd1 {[%emt 0:00:17]} Nd7 {[%emt 0:06:37]} 11. a3 {[%emt 0:04:39]}
Qc8 {[%emt 0:05:07]} 12. Bh3 {[%emt 0:15:16]} c5 {[%emt 0:02:33]} 13. Nc3 {
[%emt 0:19:04]} Nxc3 {[%emt 0:03:47]} 14. Qxc3 {[%emt 0:00:04]} Qc6 {[%emt 0:
00:00]} 15. f3 {[%emt 0:02:23]} h5 {[%emt 0:16:20]} 16. Bg5 {[%emt 0:09:23]} c4
{[%emt 0:00:00]} 17. Nf2 {[%emt 0:04:49]} f6 {[%emt 0:00:00]} 18. Qc2 {[%emt 0:
00:00]} fxg5 {[%emt 0:05:03]} 19. Qg6+ {[%emt 0:00:00]} Ke7 {[%emt 0:00:37]}
20. Ne4 {[%emt 0:00:00]} Rh6 {[%emt 0:01:58]} 21. Qxg5+ {[%emt 0:00:00]} Ke8 {
[%emt 0:01:14]} 22. Qf4 {[%emt 0:00:26]} Qb6+ {[%emt 0:04:12]} 23. Kh1 {
[%emt 0:00:49]} Bxe4 {[%emt 0:00:23]} 24. Qxe4 {[%emt 0:01:23]} Rd8 {[%emt 0:
00:00]} 25. Bf5 {[%emt 0:01:04]} Kf7 {[%emt 0:01:40]} 26. Bh3 {[%emt 0:00:00]}
Nc5 {[%emt 0:01:00]} 27. Qf4+ {[%emt 0:00:13]} Kg8 {[%emt 0:02:46]} 28. Qg5 {
[%emt 0:00:18]} Re8 {[%emt 0:00:22]} 29. Qe5 {[%emt 0:00:54]} Qb8 {[%emt 0:00:
00]} 30. Qg5 {[%emt 0:00:01]} Be7 {[%emt 0:01:07]} 31. Qe3 {[%emt 0:00:01]} h4
{[%emt 0:01:17]} 32. Kg2 {[%emt 0:01:31]} hxg3 {[%emt 0:01:00]} 33. hxg3 {
[%emt 0:00:00]} Kf7 {[%emt 0:00:39]} 34. Rd4 {[%emt 0:00:47]} Bf6 {[%emt 0:00:
00]} 35. Rf4 {[%emt 0:00:30]} Qd6 {[%emt 0:00:26]} 36. Rh1 {[%emt 0:00:44]}
Reh8 {[%emt 0:02:28]} 37. Qc1 {[%emt 0:00:34]} Qe5 {[%emt 0:01:10]} 0-1